fUST/lending_fUST_20250520
["ID","MTS","AMOUNT","RATE_DAILY","PERIOD"]
[361746954,1747753844220,-500.0,0.00017732,2]
[361746956,1747753844232,-151.0,0.00017752,2]
[361746958,1747753844244,-404.0,0.00017763,2]
[361746960,1747753844257,-151.0,0.00017807,2]
[361746963,1747753844270,-151.0,0.00017807,2]
[361746965,1747753844282,-151.0,0.00017807,2]
[361746967,1747753844294,-151.0,0.00017807,2]
[361746969,1747753844305,-151.0,0.00017807,2]
[361746971,1747753844316,-151.0,0.00017807,2]
[361746973,1747753844328,-151.0,0.00017807,2]
[361746975,1747753844340,-338.75689,0.00017807,2]
[361746977,1747753844351,-338.75689,0.00017807,2]
[361746980,1747753844363,-506.394,0.00017808,2]
[361746982,1747753844376,-430.0,0.00017808,2]
[361746984,1747753844388,-475.57,0.00017808,2]
[361746986,1747753844400,-430.0,0.00017808,2]
[361746989,1747753844411,-430.0,0.00017808,2]
[361746991,1747753844422,-151.0,0.00017808,2]
[361746993,1747753844432,-152.767712,0.00017808,2]
[361746995,1747753844444,-517.93,0.00017808,2]
[361746997,1747753844455,-802.98,0.00017808,2]
[361746999,1747753844467,-151.0,0.00017808,2]
[361747001,1747753844479,-202.22784,0.00017808,2]
[361747004,1747753844491,-430.0,0.00017808,2]
[361747006,1747753844503,-1098.54,0.00017808,2]
[361747008,1747753844516,-430.0,0.00017808,2]
[361747010,1747753844528,-430.0,0.00017808,2]
[361747012,1747753844541,-430.0,0.00017808,2]
[361747015,1747753844554,-151.0,0.00017808,2]
[361747017,1747753844566,-1724.98,0.00017808,2]
[361747019,1747753844578,-430.0,0.00017808,2]
[361747021,1747753844591,-430.0,0.00017808,2]
[361747023,1747753844604,-430.0,0.00017808,2]
[361747025,1747753844614,-430.0,0.00017808,2]
[361747027,1747753844625,-151.44301604,0.00017808,2]
[361747029,1747753844634,-707.57,0.00017808,2]
[361747031,1747753844645,-151.0,0.00017808,2]
[361747033,1747753844655,-286.73477506,0.00017808,2]
[361747036,1747753844667,-2982.33,0.00017808,2]
[361747038,1747753844678,-896.57,0.00017808,2]
[361747040,1747753844692,-298.76,0.00017808,2]
[361747042,1747753844705,-430.0,0.00017808,2]
[361747044,1747753844717,-430.0,0.00017808,2]
[361747046,1747753844728,-738.18,0.00017808,2]
[361747048,1747753844739,-734.47,0.00017808,2]
[361747051,1747753844750,-2183.46,0.00017808,2]
[361747053,1747753844762,-430.0,0.00017808,2]
[361747055,1747753844774,-430.0,0.00017808,2]
[361747057,1747753844787,-430.0,0.00017808,2]
[361747059,1747753844800,-999.29,0.00017808,2]
[361747061,1747753844811,-430.0,0.00017808,2]
[361747063,1747753844822,-603.08,0.00017808,2]
[361747065,1747753844833,-430.0,0.00017808,2]
[361747067,1747753844845,-505.97,0.00017808,2]
[361747069,1747753844856,-430.0,0.00017808,2]
[361747071,1747753844868,-563.26,0.00017808,2]
[361747073,1747753844879,-1590.48,0.00017808,2]
[361747075,1747753844890,-151.0,0.00017808,2]
[361747078,1747753844901,-318.517573,0.00017808,2]
[361747080,1747753844911,-151.0,0.00017831,2]
[361747082,1747753844924,-151.0,0.00017831,2]
[361747084,1747753844935,-151.0,0.00017831,2]
[361747086,1747753844946,-5182.41492985,0.00017831,2]
[361747088,1747753844958,-500.0,0.00017832,2]
[361747090,1747753844969,-420.0,0.00017846,2]
[361747092,1747753844983,-420.0,0.00017846,2]
[361747095,1747753844996,-547.0,0.00017868,2]
[361747097,1747753845007,-2246.865,0.00017868,2]
[361747099,1747753845019,-709.093,0.00017868,2]
[361747101,1747753845030,-755.88111119,0.0001793,2]
[361747103,1747753845041,-1680.0,0.00017935,2]
[361747105,1747753845052,-151.63523759,0.00017949,2]
[361747107,1747753845064,-215.0738,0.00017949,2]
[361747109,1747753845074,-226.761538,0.00017969,2]
[361747111,1747753845085,-175.426354,0.00017969,2]
[361747114,1747753845096,-430.0,0.00018082,2]
[361747116,1747753845107,-475.57,0.00018082,2]
[361747118,1747753845119,-430.0,0.00018082,2]
[361747120,1747753845129,-151.0,0.00018082,2]
[361747122,1747753845141,-151.0,0.00018082,2]
[361747124,1747753845151,-151.0,0.00018082,2]
[361747126,1747753845162,-215.138576,0.00018082,2]
[361747128,1747753845173,-215.138576,0.00018082,2]
[361747130,1747753845184,-151.0,0.00018082,2]
[361747133,1747753845195,-570.0,0.00018082,2]
[361747135,1747753845206,-517.93,0.00018082,2]
[361747137,1747753845217,-802.98,0.00018082,2]
[361747139,1747753845227,-396.54640455,0.00018082,2]
[361747141,1747753845238,-1098.54,0.00018082,2]
[361747143,1747753845248,-457.92241107,0.00018082,2]
[361747145,1747753845260,-430.0,0.00018082,2]
[361747147,1747753845271,-430.0,0.00018082,2]
[361747149,1747753845282,-151.0,0.00018082,2]
[361747152,1747753845292,-1724.98,0.00018082,2]
[361747154,1747753845303,-250.45,0.00018082,2]
[361747156,1747753845314,-570.0,0.00018082,2]
[361747158,1747753845325,-430.0,0.00018082,2]
[361747160,1747753845335,-570.0,0.00018082,2]
[361747162,1747753845345,-707.57,0.00018082,2]
[361747164,1747753845356,-151.0,0.00018082,2]
[361747166,1747753845367,-2982.33,0.00018082,2]
[361747168,1747753845378,-896.57,0.00018082,2]
[361747171,1747753845389,-430.0,0.00018082,2]
[361747173,1747753845399,-430.0,0.00018082,2]
[361747175,1747753845411,-738.18,0.00018082,2]
[361747177,1747753845421,-734.47,0.00018082,2]
[361747179,1747753845432,-2183.46,0.00018082,2]
[361747181,1747753845443,-430.0,0.00018082,2]
[361747183,1747753845454,-430.0,0.00018082,2]
[361747185,1747753845465,-430.0,0.00018082,2]
[361747187,1747753845476,-999.29,0.00018082,2]
[361747189,1747753845486,-570.0,0.00018082,2]
[361747191,1747753845497,-603.08,0.00018082,2]
[361747193,1747753845508,-430.0,0.00018082,2]
[361747195,1747753845520,-505.97,0.00018082,2]
[361747196,1747753845530,-430.0,0.00018082,2]
[361747197,1747753845541,-563.26,0.00018082,2]
[361747198,1747753845553,-1590.48,0.00018082,2]
[361747199,1747753845564,-151.0,0.00018082,2]
[361747200,1747753845575,-151.0,0.00018103,2]
[361747201,1747753845585,-151.0,0.00018103,2]
[361747202,1747753845597,-151.0,0.00018103,2]
[361747203,1747753845608,-151.0,0.00018103,2]
[361747204,1747753845619,-151.0,0.00018103,2]
[361747205,1747753845628,-338.75689,0.00018103,2]
[361747206,1747753845637,-338.75689,0.00018103,2]
[361747207,1747753845647,-151.0,0.00018141,2]
[361747208,1747753845656,-5182.41492985,0.00018141,2]
[361747209,1747753845666,-200.0,0.000182,2]
[361747210,1747753845676,-1000.0,0.0001823,2]
[361747211,1747753845685,-3000.0,0.00018253,2]
[361747212,1747753845694,-1000.0,0.00018266,2]
[361747213,1747753845704,-500.0,0.0001828,2]
[361747214,1747753845714,-151.0,0.00018356,2]
[361747215,1747753845724,-343.51128,0.00018356,2]
[361747216,1747753845735,-283.55849407,0.00018356,2]
[361747217,1747753845748,-343.51128,0.00018356,2]
[361747218,1747753845762,-151.0,0.00018356,2]
[361747220,1747753845773,-475.57,0.00018356,2]
[361747222,1747753845783,-430.0,0.00018356,2]
[361747224,1747753845793,-151.0,0.00018356,2]
[361747225,1747753845804,-517.93,0.00018356,2]
[361747228,1747753845815,-802.98,0.00018356,2]
[361747230,1747753845825,-151.0,0.00018356,2]
[361747254,1747753846066,-1098.54,0.00018356,2]
[361747257,1747753846092,-430.0,0.00018356,2]
[361747259,1747753846110,-430.0,0.00018356,2]
[361747261,1747753846120,-1724.98,0.00018356,2]
[361747263,1747753846129,-430.0,0.00018356,2]
[361747265,1747753846138,-707.57,0.00018356,2]
[361747267,1747753846148,-2982.33,0.00018356,2]
[361747269,1747753846158,-151.0,0.00018356,2]
[361747271,1747753846167,-151.0,0.00018356,2]
[361747273,1747753846176,-896.57,0.00018356,2]
[361747275,1747753846186,-430.0,0.00018356,2]
[361747277,1747753846195,-430.0,0.00018356,2]
[361747279,1747753846204,-738.18,0.00018356,2]
[361747281,1747753846213,-734.47,0.00018356,2]
[361747282,1747753846223,-2183.46,0.00018356,2]
[361747284,1747753846232,-545.83695043,0.00018356,2]
[361747286,1747753846241,-430.0,0.00018356,2]
[361747288,1747753846250,-430.0,0.00018356,2]
[361747290,1747753846259,-999.29,0.00018356,2]
[361747292,1747753846268,-603.08,0.00018356,2]
[361747294,1747753846278,-430.0,0.00018356,2]
[361747296,1747753846287,-505.97,0.00018356,2]
[361747298,1747753846296,-430.0,0.00018356,2]
[361747300,1747753846306,-563.26,0.00018356,2]
[361747302,1747753846315,-1590.48,0.00018356,2]
[361747304,1747753846324,-300.0,0.000184,2]
[361747306,1747753846333,-1000.34011564,0.00018412,2]
[361747308,1747753846343,-2200.0,0.0001845,2]
[361747310,1747753846352,-5182.41492985,0.00018452,2]
[361747312,1747753846361,-755.88111119,0.00018589,2]
[361747314,1747753846371,-475.57,0.0001863,2]
[361747316,1747753846380,-430.0,0.0001863,2]
[361747318,1747753846389,-175.426354,0.0001863,2]
[361747320,1747753846398,-151.0,0.0001863,2]
[361747322,1747753846407,-151.0,0.0001863,2]
[361747324,1747753846417,-252.88147,0.0001863,2]
[361747325,1747753846426,-215.138576,0.0001863,2]
[361747327,1747753846436,-215.138576,0.0001863,2]
[361747329,1747753846445,-151.0,0.0001863,2]
[361747331,1747753846455,-151.0,0.0001863,2]
[361747333,1747753846464,-517.93,0.0001863,2]
[361747335,1747753846473,-802.98,0.0001863,2]
[361747337,1747753846483,-1098.54,0.0001863,2]
[361747339,1747753846493,-430.0,0.0001863,2]
[361747341,1747753846503,-430.0,0.0001863,2]
[361747343,1747753846512,-1724.98,0.0001863,2]
[361747345,1747753846522,-430.0,0.0001863,2]
[361747347,1747753846531,-707.57,0.0001863,2]
[361747349,1747753846540,-151.0,0.0001863,2]
[361747351,1747753846550,-2982.33,0.0001863,2]
[361747353,1747753846559,-896.57,0.0001863,2]
[361747354,1747753846568,-430.0,0.0001863,2]
[361747355,1747753846578,-430.0,0.0001863,2]
[361747356,1747753846587,-738.18,0.0001863,2]
[361747357,1747753846597,-734.47,0.0001863,2]
[361747358,1747753846606,-2183.46,0.0001863,2]
[361747359,1747753846615,-430.0,0.0001863,2]
[361747360,1747753846624,-999.29,0.0001863,2]
[361747361,1747753846634,-430.0,0.0001863,2]
[361747362,1747753846644,-603.08,0.0001863,2]
[361747363,1747753846653,-430.0,0.0001863,2]
[361747364,1747753846663,-505.97,0.0001863,2]
[361747365,1747753846672,-430.0,0.0001863,2]
[361747366,1747753846682,-563.26,0.0001863,2]
[361747367,1747753846691,-1590.48,0.0001863,2]
[361747368,1747753846701,-151.0,0.0001863,2]
[361747369,1747753846710,-5182.41492985,0.00018762,2]
[361747370,1747753846719,-1500.0,0.00018778,2]
[361747371,1747753846728,-973.47295933,0.00018784,2]
[361747372,1747753846738,-1000.0,0.00018814,2]
[361747373,1747753846747,-151.0,0.000189,2]
[361747374,1747753846756,-151.0,0.000189,2]
[361747375,1747753846766,-151.0,0.000189,2]
[361747376,1747753846775,-338.75689,0.000189,2]
[361747377,1747753846783,-338.75689,0.000189,2]
[361747378,1747753846793,-151.0,0.000189,2]
[361747379,1747753846803,-151.0,0.000189,2]
[361747380,1747753846812,-151.0,0.000189,2]
[361747381,1747753846822,-151.0,0.00018904,2]
[361747382,1747753846832,-204.918062,0.00018904,2]
[361747383,1747753846841,-151.0,0.00018904,2]
[361747384,1747753846851,-151.0,0.00018904,2]
[361747385,1747753846863,-343.51128,0.00018904,2]
[361747386,1747753846873,-343.51128,0.00018904,2]
[361747387,1747753846882,-248.51182,0.00018904,2]
[361747388,1747753846891,-475.57,0.00018904,2]
[361747389,1747753846900,-430.0,0.00018904,2]
[361747390,1747753846909,-517.93,0.00018904,2]
[361747391,1747753846919,-802.98,0.00018904,2]
[361747393,1747753846928,-151.0,0.00018904,2]
[361747394,1747753846938,-1098.54,0.00018904,2]
[361747396,1747753846948,-430.0,0.00018904,2]
[361747398,1747753846958,-430.0,0.00018904,2]
[361747400,1747753846968,-1724.98,0.00018904,2]
[361747402,1747753846981,-430.0,0.00018904,2]
[361747404,1747753846994,-707.57,0.00018904,2]
[361747406,1747753847004,-2982.33,0.00018904,2]
[361747408,1747753847013,-896.57,0.00018904,2]
[361747410,1747753847023,-430.0,0.00018904,2]
[361747412,1747753847032,-430.0,0.00018904,2]
[361747414,1747753847042,-738.18,0.00018904,2]
[361747416,1747753847054,-734.47,0.00018904,2]
[361747418,1747753847070,-2183.46,0.00018904,2]
[361747420,1747753847079,-430.0,0.00018904,2]
[361747422,1747753847089,-999.29,0.00018904,2]
[361747424,1747753847099,-430.0,0.00018904,2]
[361747426,1747753847108,-603.08,0.00018904,2]
[361747428,1747753847118,-430.0,0.00018904,2]
[361747430,1747753847127,-505.97,0.00018904,2]
[361747432,1747753847136,-430.0,0.00018904,2]
[361747434,1747753847146,-563.26,0.00018904,2]
[361747436,1747753847156,-1590.48,0.00018904,2]
[361747438,1747753847166,-689.631319,0.00018961,2]
[361747440,1747753847175,-5182.41492985,0.00019072,2]
[361747442,1747753847185,-475.57,0.00019178,2]
[361747444,1747753847194,-430.0,0.00019178,2]
[361747446,1747753847203,-175.426354,0.00019178,2]
[361747448,1747753847213,-151.0,0.00019178,2]
[361747450,1747753847222,-151.0,0.00019178,2]
[361747452,1747753847231,-215.138576,0.00019178,2]
[361747454,1747753847240,-215.138576,0.00019178,2]
[361747456,1747753847249,-151.0,0.00019178,2]
[361747457,1747753847258,-151.0,0.00019178,2]
[361747459,1747753847269,-151.0,0.00019178,2]
[361747461,1747753847278,-517.93,0.00019178,2]
[361747463,1747753847287,-802.98,0.00019178,2]
[361747465,1747753847297,-1098.54,0.00019178,2]
[361747467,1747753847306,-430.0,0.00019178,2]
[361747469,1747753847315,-430.0,0.00019178,2]
[361747471,1747753847324,-1724.98,0.00019178,2]
[361747473,1747753847333,-430.0,0.00019178,2]
[361747475,1747753847342,-707.57,0.00019178,2]
[361747477,1747753847352,-151.0,0.00019178,2]
[361747479,1747753847361,-2982.33,0.00019178,2]
[361747481,1747753847369,-151.0,0.00019178,2]
[361747482,1747753847379,-151.0,0.00019178,2]
[361747484,1747753847388,-896.57,0.00019178,2]
[361747486,1747753847397,-430.0,0.00019178,2]
[361747488,1747753847407,-430.0,0.00019178,2]
[361747490,1747753847416,-738.18,0.00019178,2]
[361747492,1747753847426,-734.47,0.00019178,2]
[361747493,1747753847435,-2183.46,0.00019178,2]
[361747494,1747753847444,-430.0,0.00019178,2]
[361747495,1747753847453,-999.29,0.00019178,2]
[361747497,1747753847464,-430.0,0.00019178,2]
[361747499,1747753847473,-603.08,0.00019178,2]
[361747501,1747753847483,-430.0,0.00019178,2]
[361747503,1747753847492,-505.97,0.00019178,2]
[361747505,1747753847501,-930.4,0.00019178,2]
[361747507,1747753847510,-930.4,0.00019178,2]
[361747509,1747753847519,-930.4,0.00019178,2]
[361747511,1747753847528,-930.4,0.00019178,2]
[361747513,1747753847537,-930.4,0.00019178,2]
[361747515,1747753847547,-930.4,0.00019178,2]
[361747517,1747753847556,-930.4,0.00019178,2]
[361747519,1747753847565,-930.4,0.00019178,2]
[361747521,1747753847574,-930.4,0.00019178,2]
[361747523,1747753847583,-930.4,0.00019178,2]
[361747525,1747753847593,-930.4,0.00019178,2]
[361747526,1747753847602,-430.0,0.00019178,2]
[361747528,1747753847611,-563.26,0.00019178,2]
[361747530,1747753847621,-1590.48,0.00019178,2]
[361747532,1747753847630,-151.0,0.00019178,2]
[361747534,1747753847639,-155.0,0.00019178,2]
[361747536,1747753847648,-166.0,0.00019178,2]
[361747538,1747753847659,-922.704915,0.00019178,2]
[361747540,1747753847668,-755.88111119,0.00019248,2]
[361747542,1747753847677,-151.0,0.000193,2]
[361747544,1747753847686,-151.0,0.000193,2]
[361747546,1747753847695,-199.7262,0.00019318,2]
[361747548,1747753847704,-151.0,0.00019329,2]
[361747550,1747753847714,-151.0,0.00019329,2]
[361747552,1747753847723,-215.138576,0.00019329,2]
[361747554,1747753847732,-215.138576,0.00019329,2]
[361747556,1747753847742,-164.291136,0.00019329,2]
[361747558,1747753847751,-274.206042,0.00019329,2]
[361747560,1747753847761,-151.0,0.00019329,2]
[361747562,1747753847770,-151.0,0.00019329,2]
[361747564,1747753847780,-151.0,0.00019329,2]
[361747566,1747753847789,-151.0,0.00019329,2]
[361747568,1747753847798,-231.52656,0.00019329,2]
[361747570,1747753847807,-100000.0,0.00019329,2]
[361747571,1747753847818,-151.0,0.00019348,2]
[361747573,1747753847827,-151.0,0.00019348,2]
[361747575,1747753847836,-152.218151,0.00019348,2]
[361747577,1747753847845,-151.0,0.00019348,2]
[361747579,1747753847854,-151.0,0.00019348,2]
[361747581,1747753847864,-151.0,0.00019349,2]
[361747583,1747753847872,-151.0,0.00019349,2]
[361747585,1747753847881,-3000.0,0.00019349,2]
[361747587,1747753847891,-151.0,0.00019349,2]
[361747589,1747753847900,-338.75689,0.00019349,2]
[361747591,1747753847909,-338.75689,0.00019349,2]
[361747593,1747753847919,-5182.41492985,0.00019383,2]
[361747595,1747753847928,-475.57,0.00019452,2]
[361747597,1747753847937,-430.0,0.00019452,2]
[361747599,1747753847946,-517.93,0.00019452,2]
[361747601,1747753847956,-802.98,0.00019452,2]
[361747603,1747753847965,-1098.54,0.00019452,2]
[361747605,1747753847975,-430.0,0.00019452,2]
[361747607,1747753847987,-430.0,0.00019452,2]
[361747609,1747753847996,-1724.98,0.00019452,2]
[361747611,1747753848006,-430.0,0.00019452,2]
[361747613,1747753848015,-707.57,0.00019452,2]
[361747615,1747753848026,-2982.33,0.00019452,2]
[361747617,1747753848035,-896.57,0.00019452,2]
[361747619,1747753848044,-430.0,0.00019452,2]
[361747621,1747753848056,-430.0,0.00019452,2]
[361747623,1747753848066,-738.18,0.00019452,2]
[361747625,1747753848075,-734.47,0.00019452,2]
[361747627,1747753848085,-2183.46,0.00019452,2]
[361747629,1747753848094,-225.6844842,0.00019452,2]
[361747631,1747753848104,-999.29,0.00019452,2]
[361747633,1747753848113,-430.0,0.00019452,2]
[361747635,1747753848123,-603.08,0.00019452,2]
[361747637,1747753848132,-318.94979658,0.00019452,2]
[361747639,1747753848141,-505.97,0.00019452,2]
[361747641,1747753848150,-930.4,0.00019452,2]
[361747643,1747753848159,-430.0,0.00019452,2]
[361747645,1747753848168,-563.26,0.00019452,2]
[361747647,1747753848177,-1590.48,0.00019452,2]
[361747649,1747753848187,-168.0,0.00019505,2]
[361747650,1747753848196,-587.0,0.00019505,2]
[361747652,1747753848205,-642.31451751,0.00019647,2]
[361747655,1747753848215,-500.0,0.00019647,2]
[361747656,1747753848224,-500.0,0.00019647,2]
[361747659,1747753848234,-628.33568338,0.00019647,2]
[361747660,1747753848243,-271.75751134,0.00019647,2]
[361747662,1747753848252,-500.0,0.00019647,2]
[361747664,1747753848261,-500.0,0.00019647,2]
[361747666,1747753848271,-600.0,0.00019647,2]
[361747668,1747753848280,-326.36502777,0.00019647,2]
[361747670,1747753848289,-500.0,0.00019647,2]
[361747672,1747753848299,-500.0,0.00019684,2]
[361747674,1747753848308,-500.0,0.00019684,2]
[361747676,1747753848317,-500.0,0.00019684,2]
[361747678,1747753848327,-500.0,0.00019684,2]
[361747680,1747753848336,-500.0,0.00019684,2]
[361747682,1747753848345,-500.0,0.00019684,2]
[361747684,1747753848354,-500.0,0.00019684,2]
[361747686,1747753848363,-500.0,0.00019684,2]
[361747688,1747753848373,-500.0,0.00019684,2]
[361747690,1747753848382,-500.0,0.00019684,2]
[361747692,1747753848391,-500.0,0.00019684,2]
[361747694,1747753848401,-500.0,0.00019684,2]
[361747695,1747753848411,-500.0,0.00019684,2]
[361747697,1747753848420,-500.0,0.00019684,2]
[361747699,1747753848430,-500.0,0.00019684,2]
[361747702,1747753848440,-417.26295631,0.00019684,2]
[361747703,1747753848450,-500.0,0.00019684,2]
[361747706,1747753848460,-500.0,0.00019684,2]
[361747707,1747753848470,-500.0,0.00019684,2]
[361747709,1747753848479,-500.0,0.00019684,2]
[361747711,1747753848489,-500.0,0.00019684,2]
[361747713,1747753848498,-500.0,0.00019684,2]
[361747715,1747753848508,-500.0,0.00019684,2]
[361747717,1747753848517,-5182.41492985,0.00019693,2]
[361747719,1747753848527,-151.0,0.000197,2]
[361747721,1747753848537,-183.128104,0.00019701,2]
[361747723,1747753848548,-343.51128,0.00019701,2]
[361747725,1747753848558,-343.51128,0.00019701,2]
[361747727,1747753848568,-671.0,0.00019701,2]
[361747729,1747753848578,-500.0,0.00019711,2]
[361747731,1747753848588,-600.0,0.00019725,2]
[361747733,1747753848598,-151.0,0.00019726,2]
[361747735,1747753848608,-475.57,0.00019726,2]
[361747737,1747753848618,-430.0,0.00019726,2]
[361747739,1747753848628,-151.0,0.00019726,2]
[361747742,1747753848638,-151.0,0.00019726,2]
[361747744,1747753848648,-517.93,0.00019726,2]
[361747745,1747753848658,-802.98,0.00019726,2]
[361747747,1747753848668,-151.0,0.00019726,2]
[361747749,1747753848678,-1098.54,0.00019726,2]
[361747751,1747753848688,-430.0,0.00019726,2]
[361747754,1747753848699,-430.0,0.00019726,2]
[361747756,1747753848709,-1724.98,0.00019726,2]
[361747758,1747753848719,-430.0,0.00019726,2]
[361747760,1747753848728,-707.57,0.00019726,2]
[361747762,1747753848738,-151.0,0.00019726,2]
[361747764,1747753848748,-2982.33,0.00019726,2]
[361747766,1747753848758,-151.0,0.00019726,2]
[361747768,1747753848768,-896.57,0.00019726,2]
[361747770,1747753848778,-558.68630314,0.00019726,2]
[361747772,1747753848788,-340.0,0.00019726,2]
[361747774,1747753848798,-738.18,0.00019726,2]
[361747776,1747753848808,-734.47,0.00019726,2]
[361747778,1747753848818,-2183.46,0.00019726,2]
[361747780,1747753848827,-999.29,0.00019726,2]
[361747782,1747753848838,-430.0,0.00019726,2]
[361747783,1747753848849,-603.08,0.00019726,2]
[361747785,1747753848859,-505.97,0.00019726,2]
[361747787,1747753848869,-930.4,0.00019726,2]
[361747789,1747753848879,-430.0,0.00019726,2]
[361747791,1747753848888,-563.26,0.00019726,2]
[361747793,1747753848898,-1590.48,0.00019726,2]
[361747795,1747753848908,-160.0,0.0001974,3]
[361747797,1747753848917,-617.04709129,0.00019778,2]
[361747799,1747753848927,-500.999998,0.0001978,2]
[361747801,1747753848936,-1000.0,0.00019789,3]
[361747803,1747753848945,-151.0,0.000198,2]
[361747805,1747753848955,-600.0,0.00019931,2]
[361747807,1747753848966,-151.0,0.00019935,2]
[361747809,1747753848976,-151.0,0.00019935,2]
[361747811,1747753848992,-151.0,0.00019935,2]
[361747813,1747753849002,-293.6802,0.00019935,2]
[361747815,1747753849011,-151.0,0.00019935,2]
[361747817,1747753849021,-151.0,0.00019935,2]
[361747819,1747753849031,-151.0,0.00019935,2]
[361747821,1747753849040,-175.426354,0.00019935,2]
[361747823,1747753849049,-151.0,0.00019935,2]
[361747825,1747753849059,-338.75689,0.00019935,2]
[361747827,1747753849069,-215.138576,0.00019935,2]
[361747829,1747753849079,-338.75689,0.00019935,2]
[361747831,1747753849088,-215.138576,0.00019935,2]
[361747833,1747753849097,-2740.0,0.0002,2]
[361747835,1747753849106,-500.0,0.0002,2]
[361747837,1747753849115,-7158.0,0.0002,10]
[361747839,1747753849124,-299.999999,0.0002,5]
[361747841,1747753849133,-2005.41,0.0002,2]
[361747843,1747753849142,-564.0,0.0002,2]
[361747845,1747753849152,-475.57,0.0002,2]
[361747847,1747753849161,-151.56668419,0.0002,2]
[361747848,1747753849171,-430.0,0.0002,2]
[361747850,1747753849180,-157.89,0.0002,2]
[361747852,1747753849190,-282.38,0.0002,2]
[361747854,1747753849200,-151.0,0.0002,2]
[361747856,1747753849210,-517.93,0.0002,2]
[361747858,1747753849219,-802.98,0.0002,2]
[361747861,1747753849230,-1098.54,0.0002,2]
[361747863,1747753849240,-430.0,0.0002,2]
[361747865,1747753849250,-430.0,0.0002,2]
[361747867,1747753849260,-1724.98,0.0002,2]
[361747869,1747753849270,-430.0,0.0002,2]
[361747871,1747753849279,-707.57,0.0002,2]
[361747873,1747753849289,-151.0,0.0002,2]
[361747886,1747753849440,-2982.33,0.0002,2]
[361747888,1747753849456,-896.57,0.0002,2]
[361747890,1747753849467,-738.18,0.0002,2]
[361747892,1747753849477,-734.47,0.0002,2]
[361747894,1747753849487,-2183.46,0.0002,2]
[361747896,1747753849497,-999.29,0.0002,2]
[361747899,1747753849507,-4000.0,0.0002,4]
[361747901,1747753849517,-237.53418938,0.0002,2]
[361747902,1747753849526,-505.97,0.0002,2]
[361747905,1747753849536,-300.0,0.0002,2]
[361747907,1747753849546,-603.08,0.0002,2]
[361747909,1747753849556,-930.4,0.0002,2]
[361747911,1747753849566,-430.0,0.0002,2]
[361747912,1747753849577,-563.26,0.0002,2]
[361747914,1747753849587,-1590.48,0.0002,2]
[361747916,1747753849597,-5182.41492985,0.00020003,2]
[361747917,1747753849607,-151.0,0.00020004,2]
[361747918,1747753849616,-973.47295933,0.00020007,2]
[361747920,1747753849626,-180.18967874,0.00020169,2]
[361747921,1747753849636,-223.409874,0.00020187,2]
[361747922,1747753849645,-343.51128,0.00020195,2]